fUSD/lending_fUSD_20250308
["ID","MTS","AMOUNT","RATE_DAILY","PERIOD"]
[355627254,1741408240107,-500.0,8.219e-05,2]
[355627255,1741408240118,-3788.7,8.219e-05,2]
[355627256,1741408240127,-513.93379424,8.219e-05,2]
[355627257,1741408240137,-678.4,8.219e-05,2]
[355627259,1741408240146,-510.90500672,8.219e-05,2]
[355627260,1741408240156,-500.0,8.219e-05,2]
[355627261,1741408240165,-5599.45,8.219e-05,2]
[355627262,1741408240174,-2553.09,8.219e-05,2]
[355627263,1741408240184,-500.0,8.219e-05,2]
[355627264,1741408240194,-3518.82,8.219e-05,2]
[355627265,1741408240204,-2297.49,8.219e-05,2]
[355627266,1741408240214,-7877.67,8.219e-05,2]
[355627267,1741408240224,-6430.39,8.219e-05,2]
[355627268,1741408240234,-663.12,8.219e-05,2]
[355627269,1741408240244,-500.0,8.219e-05,2]
[355627270,1741408240253,-561.04270112,8.219e-05,2]
[355627271,1741408240263,-500.0,8.219e-05,2]
[355627272,1741408240275,-1550.72,8.219e-05,2]
[355627273,1741408240285,-801.25,8.219e-05,2]
[355627274,1741408240295,-6994.9,8.219e-05,2]
[355627275,1741408240307,-2927.81,8.219e-05,2]
[355627276,1741408240317,-500.0,8.219e-05,2]
[355627277,1741408240327,-503.77534597,8.219e-05,2]
[355627278,1741408240336,-580.45,8.219e-05,2]
[355627279,1741408240346,-5337.7,8.219e-05,2]
[355627280,1741408240356,-506.29281844,8.219e-05,2]
[355627281,1741408240366,-935.7,8.219e-05,2]
[355627282,1741408240376,-500.0,8.219e-05,2]
[355627283,1741408240386,-5563.68,8.219e-05,2]
[355627284,1741408240395,-500.0,8.219e-05,2]
[355627285,1741408240405,-500.0,8.219e-05,2]
[355627286,1741408240415,-500.0,8.219e-05,2]
[355627287,1741408240425,-1588.0,8.219e-05,2]
[355627288,1741408240435,-500.0,8.219e-05,2]
[355627289,1741408240445,-500.0,8.219e-05,2]
[355627290,1741408240455,-2872.63,8.219e-05,2]
[355627291,1741408240464,-501.94083038,8.219e-05,2]
[355627292,1741408240473,-500.0,8.219e-05,2]
[355627293,1741408240483,-8101.39,8.219e-05,2]
[355627294,1741408240493,-433.83010708,8.219e-05,2]
[355627295,1741408240503,-1087.0,8.219e-05,2]
[355627296,1741408240513,-500.0,8.219e-05,2]
[355627297,1741408240523,-3407.23,8.219e-05,2]
[355627298,1741408240532,-537.43,8.219e-05,2]
[355627299,1741408240542,-3416.17,8.219e-05,2]
[355627300,1741408240553,-2097.89,8.219e-05,2]
[355627301,1741408240562,-2587.61,8.219e-05,2]
[355627302,1741408240572,-3506.42,8.219e-05,2]
[355627303,1741408240582,-3480.74,8.219e-05,2]
[355627304,1741408240591,-500.0,8.219e-05,2]
[355627305,1741408240601,-14331.08,8.219e-05,2]
[355627306,1741408240611,-2002.44,8.219e-05,2]
[355627307,1741408240620,-500.0,8.219e-05,2]
[355627308,1741408240630,-1983.57,8.219e-05,2]
[355627309,1741408240640,-581.7747841,8.219e-05,2]
[355627310,1741408240649,-500.0,8.219e-05,2]
[355627311,1741408240659,-2194.36,8.219e-05,2]
[355627312,1741408240669,-500.0,8.219e-05,2]
[355627313,1741408240682,-1425.4,8.219e-05,2]
[355627314,1741408240691,-500.0,8.219e-05,2]
[355627315,1741408240701,-500.0,8.219e-05,2]
[355627316,1741408240711,-1598.06,8.219e-05,2]
[355627317,1741408240721,-1444.04,8.219e-05,2]
[355627318,1741408240730,-500.0,8.219e-05,2]
[355627319,1741408240740,-1444.17,8.219e-05,2]
[355627320,1741408240750,-500.0,8.219e-05,2]
[355627321,1741408240761,-395.62371436,8.219e-05,2]
[355627322,1741408240770,-9468.62,8.219e-05,2]
[355627323,1741408240780,-500.0,8.219e-05,2]
[355627324,1741408240789,-4687.99,8.219e-05,2]
[355627325,1741408240800,-500.0,8.219e-05,2]
[355627326,1741408240811,-500.0,8.219e-05,2]
[355627327,1741408240820,-500.0,8.219e-05,2]
[355627328,1741408240831,-5458.77,8.219e-05,2]
[355627329,1741408240841,-500.0,8.219e-05,2]
[355627330,1741408240851,-500.0,8.219e-05,2]
[355627331,1741408240861,-5164.45,8.219e-05,2]
[355627332,1741408240870,-2133.15,8.219e-05,2]
[355627333,1741408240880,-500.0,8.219e-05,2]
[355627334,1741408240888,-500.0,8.219e-05,2]
[355627335,1741408240898,-500.0,8.219e-05,2]
[355627336,1741408240908,-500.0,8.219e-05,2]
[355627337,1741408240918,-1019.4,8.219e-05,2]
[355627338,1741408240928,-4020.84,8.219e-05,2]
[355627339,1741408240937,-500.0,8.219e-05,2]
[355627340,1741408240947,-500.0,8.219e-05,2]
[355627341,1741408240958,-9095.05,8.219e-05,2]
[355627342,1741408240968,-500.0,8.219e-05,2]
[355627343,1741408240978,-500.0,8.219e-05,2]
[355627344,1741408240987,-500.0,8.219e-05,2]
[355627345,1741408240998,-500.0,8.219e-05,2]
[355627346,1741408241007,-25895.96,8.219e-05,2]
[355627347,1741408241017,-4733.09,8.219e-05,2]
[355627348,1741408241027,-2548.47,8.219e-05,2]
[355627349,1741408241036,-500.0,8.219e-05,2]
[355627350,1741408241046,-2087.27,8.219e-05,2]
[355627352,1741408241059,-500.0,8.219e-05,2]
[355627353,1741408241068,-500.0,8.219e-05,2]
[355627355,1741408241078,-3826.49,8.219e-05,2]
[355627357,1741408241088,-4824.86,8.219e-05,2]
[355627358,1741408241098,-3218.21,8.219e-05,2]
[355627359,1741408241108,-500.0,8.219e-05,2]
[355627360,1741408241117,-500.0,8.219e-05,2]
[355627361,1741408241127,-1314.98,8.219e-05,2]
[355627362,1741408241137,-5080.95,8.219e-05,2]
[355627363,1741408241147,-7982.03,8.219e-05,2]
[355627364,1741408241157,-509.86,8.219e-05,2]
[355627365,1741408241167,-512.84481195,8.219e-05,2]
[355627366,1741408241177,-500.0,8.219e-05,2]
[355627367,1741408241187,-500.0,8.219e-05,2]
[355627368,1741408241333,-1190.62,8.219e-05,2]
[355627369,1741408241357,-503.576593,8.219e-05,2]
[355627370,1741408241367,-4048.62,8.219e-05,2]
[355627371,1741408241377,-500.0,8.219e-05,2]
[355627372,1741408241386,-512.32178979,8.219e-05,2]
[355627373,1741408241396,-3189.83,8.219e-05,2]
[355627374,1741408241406,-2776.06,8.219e-05,2]
[355627375,1741408241416,-500.0,8.219e-05,2]
[355627376,1741408241426,-1769.13,8.219e-05,2]
[355627377,1741408241436,-500.0,8.219e-05,2]
[355627378,1741408241446,-500.0,8.219e-05,2]
[355627379,1741408241455,-1758.48,8.219e-05,2]
[355627380,1741408241464,-500.0,8.219e-05,2]
[355627381,1741408241474,-500.0,8.219e-05,2]
[355627382,1741408241483,-500.0,8.219e-05,2]
[355627383,1741408241492,-4029.97,8.219e-05,2]
[355627384,1741408241502,-508.30650258,8.219e-05,2]
[355627385,1741408241511,-500.0,8.219e-05,2]
[355627386,1741408241520,-477.98699987,8.219e-05,2]
[355627387,1741408241530,-2744.63,8.219e-05,2]
[355627388,1741408241539,-8061.17,8.219e-05,2]
[355627389,1741408241549,-500.0,8.219e-05,2]
[355627390,1741408241559,-500.0,8.219e-05,2]
[355627391,1741408241568,-500.0,8.219e-05,2]
[355627392,1741408241577,-13774.9,8.219e-05,2]
[355627393,1741408241587,-5912.15,8.219e-05,2]
[355627394,1741408241596,-500.0,8.219e-05,2]
[355627395,1741408241606,-500.0,8.219e-05,2]
[355627396,1741408241615,-1650.24,8.219e-05,2]
[355627397,1741408241625,-1868.35,8.219e-05,2]
[355627398,1741408241635,-4230.93,8.219e-05,2]
[355627399,1741408241645,-500.0,8.219e-05,2]
[355627400,1741408241654,-159.0,8.219e-05,3]
[355627401,1741408241663,-500.0,8.219e-05,2]
[355627402,1741408241673,-500.0,8.219e-05,2]
[355627403,1741408241687,-501.15033356,8.219e-05,2]
[355627404,1741408241696,-500.0,8.219e-05,2]
[355627405,1741408241706,-1086.96,8.219e-05,2]
[355627406,1741408241715,-12448.45,8.219e-05,2]
[355627407,1741408241726,-1451.03,8.219e-05,2]
[355627408,1741408241736,-1045.59,8.219e-05,2]
[355627409,1741408241745,-499.01861184,8.219e-05,2]
[355627410,1741408241756,-3060.52,8.219e-05,2]
[355627411,1741408241765,-2021.74,8.219e-05,2]
[355627412,1741408241774,-500.0,8.219e-05,2]
[355627413,1741408241785,-500.0,8.219e-05,2]
[355627414,1741408241795,-3080.27,8.219e-05,2]
[355627415,1741408241805,-1199.23,8.219e-05,2]
[355627416,1741408241814,-1536.66,8.219e-05,2]
[355627417,1741408241823,-4705.29,8.219e-05,2]
[355627418,1741408241833,-4414.35,8.219e-05,2]
[355627419,1741408241842,-2954.96,8.219e-05,2]
[355627420,1741408241852,-510.89402642,8.219e-05,2]
[355627421,1741408241862,-2486.48,8.219e-05,2]
[355627422,1741408241871,-54660.98,8.219e-05,2]
[355627423,1741408241881,-511.15024803,8.219e-05,2]
[355627424,1741408241890,-500.0,8.219e-05,2]
[355627425,1741408241899,-1988.06,8.219e-05,2]
[355627426,1741408241908,-27911.93,8.219e-05,2]
[355627427,1741408241917,-500.0,8.219e-05,2]
[355627428,1741408241926,-500.0,8.219e-05,2]
[355627429,1741408241936,-1745.25,8.219e-05,2]
[355627430,1741408241945,-2521.47,8.219e-05,2]
[355627431,1741408241955,-514.07645639,8.219e-05,2]
[355627432,1741408241964,-1180.62,8.219e-05,2]
[355627433,1741408241974,-2409.9,8.219e-05,2]
[355627434,1741408241983,-2361.48,8.219e-05,2]
[355627435,1741408241993,-1508.0,8.219e-05,2]
[355627436,1741408242003,-1678.34,8.219e-05,2]
[355627437,1741408242012,-500.0,8.219e-05,2]
[355627438,1741408242022,-3126.58,8.219e-05,2]
[355627439,1741408242031,-2999.97,8.219e-05,2]
[355627440,1741408242040,-500.0,8.219e-05,2]
[355627441,1741408242050,-250.0,8.219e-05,2]
[355627442,1741408242059,-1000.0,8.219e-05,2]
[355627443,1741408242069,-1338.89,8.219e-05,2]
[355627444,1741408242079,-223.09,8.219e-05,2]
[355627445,1741408242089,-489.0,8.301e-05,2]
[355627446,1741408242099,-1345.0,8.466e-05,2]
[355627447,1741408242109,-14794.0,8.466e-05,2]
[355627448,1741408242119,-526.75260001,8.473e-05,2]
[355627449,1741408242130,-371.11843293,8.473e-05,2]
[355627450,1741408242141,-1148.5,8.473e-05,2]
[355627451,1741408242150,-2186.36,8.492e-05,2]
[355627452,1741408242160,-520.33934881,8.493e-05,2]
[355627453,1741408242170,-321.25693403,8.493e-05,2]
[355627454,1741408242181,-521.98499054,8.493e-05,2]
[355627455,1741408242190,-500.0,8.493e-05,2]
[355627456,1741408242200,-500.0,8.493e-05,2]
[355627457,1741408242209,-593.32972457,8.493e-05,2]
[355627458,1741408242219,-500.0,8.493e-05,2]
[355627459,1741408242228,-500.0,8.493e-05,2]
[355627460,1741408242238,-500.0,8.493e-05,2]
[355627461,1741408242247,-500.0,8.493e-05,2]
[355627462,1741408242266,-350.0,8.493e-05,2]
[355627463,1741408242283,-1085.98,8.493e-05,2]
[355627464,1741408242305,-500.0,8.493e-05,2]
[355627465,1741408242324,-500.0,8.493e-05,2]
[355627466,1741408242339,-787.48,8.493e-05,2]
[355627467,1741408242358,-500.0,8.493e-05,2]
[355627468,1741408242377,-500.0,8.493e-05,2]
[355627469,1741408242396,-500.0,8.493e-05,2]
[355627470,1741408242414,-500.0,8.493e-05,2]
[355627471,1741408242433,-500.0,8.493e-05,2]
[355627472,1741408242451,-500.0,8.493e-05,2]
[355627473,1741408242465,-215.16651382,8.493e-05,2]
[355627474,1741408242486,-500.0,8.493e-05,2]
[355627475,1741408242499,-500.0,8.493e-05,2]
[355627476,1741408242518,-1130.55,8.493e-05,2]
[355627477,1741408242532,-500.0,8.493e-05,2]
[355627478,1741408242547,-500.0,8.493e-05,2]
[355627479,1741408242563,-1562.4,8.493e-05,2]
[355627480,1741408242578,-1802.66,8.493e-05,2]
[355627481,1741408242593,-1102.09,8.493e-05,2]
[355627482,1741408242607,-879.07,8.493e-05,2]
[355627483,1741408242622,-505.92593792,8.493e-05,2]
[355627484,1741408242637,-500.0,8.493e-05,2]
[355627485,1741408242652,-500.0,8.493e-05,2]
[355627486,1741408242666,-500.0,8.493e-05,2]
[355627487,1741408242682,-312.88072911,8.493e-05,2]
[355627488,1741408242697,-1350.51,8.493e-05,2]
[355627489,1741408242717,-500.0,8.493e-05,2]
[355627490,1741408242732,-500.0,8.493e-05,2]
[355627491,1741408242747,-500.0,8.493e-05,2]
[355627492,1741408242763,-527.50371106,8.493e-05,2]
[355627493,1741408242778,-649.2167781,8.493e-05,2]
[355627494,1741408242792,-500.0,8.493e-05,2]
[355627495,1741408242808,-500.0,8.493e-05,2]
[355627496,1741408242823,-500.0,8.493e-05,2]
[355627497,1741408242837,-1005.49,8.493e-05,2]
[355627498,1741408242854,-500.0,8.493e-05,2]
[355627499,1741408242868,-371.60645807,8.493e-05,2]
[355627500,1741408242883,-500.0,8.493e-05,2]
[355627501,1741408242898,-500.0,8.493e-05,2]
[355627502,1741408242914,-500.0,8.493e-05,2]
[355627503,1741408242927,-500.0,8.493e-05,2]
[355627504,1741408242943,-1316.17,8.493e-05,2]
[355627505,1741408242958,-500.0,8.493e-05,2]
[355627506,1741408242972,-500.0,8.493e-05,2]
[355627507,1741408242986,-500.0,8.493e-05,2]
[355627508,1741408243001,-500.0,8.493e-05,2]
[355627509,1741408243015,-558.13273995,8.493e-05,2]
[355627510,1741408243030,-500.0,8.493e-05,2]
[355627511,1741408243045,-244.7279329,8.493e-05,2]
[355627512,1741408243060,-500.0,8.493e-05,2]
[355627513,1741408243075,-195.92168999,8.493e-05,2]
[355627514,1741408243090,-500.0,8.493e-05,2]
[355627515,1741408243106,-500.0,8.493e-05,2]
[355627516,1741408243121,-500.0,8.493e-05,2]
[355627518,1741408243137,-526.95302467,8.493e-05,2]
[355627521,1741408243152,-1455.01,8.493e-05,2]
[355627523,1741408243167,-1243.16,8.493e-05,2]
[355627524,1741408243182,-500.0,8.493e-05,2]
[355627525,1741408243197,-500.0,8.493e-05,2]
[355627526,1741408243215,-500.0,8.493e-05,2]
[355627527,1741408243231,-505.58977484,8.493e-05,2]
[355627528,1741408243246,-500.0,8.493e-05,2]
[355627529,1741408243260,-500.0,8.493e-05,2]
[355627530,1741408243277,-500.0,8.493e-05,2]
[355627531,1741408243292,-500.0,8.493e-05,2]
[355627532,1741408243307,-500.0,8.493e-05,2]
[355627533,1741408243322,-531.14652107,8.493e-05,2]
[355627534,1741408243337,-506.23668976,8.493e-05,2]
[355627535,1741408243352,-500.0,8.493e-05,2]
[355627536,1741408243366,-1069.92,8.493e-05,2]
[355627537,1741408243381,-1005.57,8.493e-05,2]
[355627538,1741408243396,-500.0,8.493e-05,2]
[355627540,1741408243411,-797.96,8.493e-05,2]
[355627542,1741408243426,-500.0,8.493e-05,2]
[355627545,1741408243439,-500.0,8.493e-05,2]
[355627546,1741408243454,-500.0,8.493e-05,2]
[355627547,1741408243470,-500.0,8.493e-05,2]
[355627548,1741408243485,-508.21,8.493e-05,2]
[355627549,1741408243501,-958.2,8.493e-05,2]
[355627550,1741408243516,-500.0,8.493e-05,2]
[355627551,1741408243531,-1835.17,8.493e-05,2]
[355627552,1741408243552,-981.51,8.493e-05,2]
[355627553,1741408243568,-500.0,8.493e-05,2]
[355627554,1741408243584,-971.34,8.493e-05,2]
[355627555,1741408243607,-1382.47,8.493e-05,2]
[355627556,1741408243632,-500.0,8.493e-05,2]
[355627557,1741408243648,-500.0,8.493e-05,2]
[355627558,1741408243662,-500.0,8.493e-05,2]
[355627559,1741408243677,-226.38492873,8.493e-05,2]
[355627560,1741408243696,-500.0,8.493e-05,2]
[355627561,1741408243711,-1638.45,8.493e-05,2]
[355627562,1741408243726,-500.0,8.493e-05,2]
[355627563,1741408243742,-1328.16,8.493e-05,2]
[355627565,1741408243752,-280.23453068,8.493e-05,2]
[355627571,1741408243982,-500.0,8.493e-05,2]
[355627574,1741408244014,-1441.18,8.493e-05,2]
[355627575,1741408244024,-500.0,8.493e-05,2]
[355627576,1741408244035,-500.0,8.493e-05,2]
[355627577,1741408244044,-500.0,8.493e-05,2]
[355627578,1741408244054,-946.54,8.493e-05,2]
[355627579,1741408244064,-862.53,8.493e-05,2]
[355627580,1741408244073,-524.51264167,8.493e-05,2]
[355627581,1741408244083,-500.0,8.493e-05,2]
[355627582,1741408244093,-500.0,8.493e-05,2]
[355627583,1741408244103,-500.0,8.493e-05,2]
[355627584,1741408244112,-500.0,8.493e-05,2]
[355627585,1741408244122,-655.99,8.493e-05,2]
[355627586,1741408244131,-852.07,8.493e-05,2]
[355627587,1741408244140,-500.0,8.493e-05,2]
[355627588,1741408244150,-500.0,8.493e-05,2]
[355627589,1741408244159,-562.81,8.493e-05,2]
[355627590,1741408244169,-500.0,8.493e-05,2]
[355627591,1741408244180,-500.0,8.493e-05,2]
[355627592,1741408244190,-918.15,8.493e-05,2]
[355627593,1741408244199,-500.0,8.493e-05,2]
[355627594,1741408244208,-500.0,8.493e-05,2]
[355627595,1741408244217,-545.16910883,8.493e-05,2]
[355627596,1741408244226,-713.78,8.493e-05,2]
[355627597,1741408244236,-829.81,8.493e-05,2]
[355627598,1741408244245,-500.0,8.493e-05,2]
[355627599,1741408244254,-504.19438783,8.493e-05,2]
[355627600,1741408244263,-500.0,8.493e-05,2]
[355627601,1741408244273,-506.52244938,8.493e-05,2]
[355627602,1741408244282,-500.0,8.493e-05,2]
[355627603,1741408244291,-500.0,8.493e-05,2]
[355627604,1741408244300,-1531.92,8.493e-05,2]
[355627605,1741408244310,-500.0,8.493e-05,2]
[355627606,1741408244319,-500.0,8.493e-05,2]
[355627607,1741408244328,-500.0,8.493e-05,2]
[355627608,1741408244338,-500.0,8.493e-05,2]
[355627609,1741408244347,-503.96920864,8.493e-05,2]
[355627610,1741408244357,-500.0,8.493e-05,2]
[355627611,1741408244366,-500.0,8.493e-05,2]
[355627612,1741408244375,-500.0,8.493e-05,2]
[355627613,1741408244384,-500.0,8.493e-05,2]
[355627614,1741408244394,-500.0,8.493e-05,2]
[355627615,1741408244403,-500.0,8.493e-05,2]
[355627616,1741408244412,-500.0,8.493e-05,2]
[355627617,1741408244421,-687.92,8.493e-05,2]
[355627618,1741408244430,-500.0,8.493e-05,2]
[355627619,1741408244440,-500.0,8.493e-05,2]
[355627620,1741408244449,-528.5977309,8.493e-05,2]
[355627621,1741408244458,-1321.11,8.493e-05,2]
[355627622,1741408244469,-500.0,8.493e-05,2]
[355627623,1741408244478,-500.0,8.493e-05,2]
[355627624,1741408244487,-520.06332191,8.493e-05,2]
[355627625,1741408244496,-500.0,8.493e-05,2]
[355627626,1741408244505,-500.0,8.493e-05,2]
[355627627,1741408244515,-500.0,8.493e-05,2]
[355627628,1741408244524,-1459.83,8.493e-05,2]
[355627629,1741408244534,-500.0,8.493e-05,2]
[355627630,1741408244543,-500.0,8.493e-05,2]
[355627631,1741408244553,-500.0,8.493e-05,2]
[355627632,1741408244562,-500.0,8.493e-05,2]
[355627633,1741408244571,-719.19,8.493e-05,2]
[355627634,1741408244580,-500.0,8.493e-05,2]
[355627635,1741408244590,-500.0,8.493e-05,2]
[355627636,1741408244599,-500.0,8.493e-05,2]
[355627637,1741408244608,-500.0,8.493e-05,2]
[355627638,1741408244617,-1894.92,8.493e-05,2]
[355627639,1741408244626,-500.0,8.493e-05,2]
[355627640,1741408244635,-804.94,8.493e-05,2]
[355627641,1741408244645,-500.0,8.493e-05,2]
[355627642,1741408244654,-500.0,8.493e-05,2]
[355627643,1741408244663,-500.0,8.493e-05,2]
[355627644,1741408244673,-967.6,8.493e-05,2]
[355627645,1741408244685,-1233.97,8.493e-05,2]
[355627646,1741408244695,-500.0,8.493e-05,2]
[355627647,1741408244704,-500.0,8.493e-05,2]
[355627648,1741408244714,-500.0,8.493e-05,2]
[355627649,1741408244724,-500.0,8.493e-05,2]
[355627650,1741408244733,-500.0,8.493e-05,2]
[355627651,1741408244743,-1367.44,8.493e-05,2]
[355627652,1741408244754,-492.02,8.493e-05,2]
[355627653,1741408244766,-500.0,8.493e-05,2]
[355627654,1741408244778,-500.0,8.493e-05,2]
[355627655,1741408244789,-500.0,8.493e-05,2]
[355627656,1741408244799,-500.0,8.493e-05,2]
[355627657,1741408244810,-500.0,8.493e-05,2]
[355627658,1741408244819,-500.0,8.493e-05,2]
[355627659,1741408244829,-891.41,8.493e-05,2]
[355627660,1741408244838,-500.0,8.493e-05,2]
[355627661,1741408244847,-495.96175825,8.493e-05,2]
[355627662,1741408244856,-500.0,8.493e-05,2]
[355627663,1741408244865,-856.53,8.493e-05,2]
[355627664,1741408244874,-563.75,8.493e-05,2]
[355627665,1741408244884,-500.0,8.493e-05,2]
[355627666,1741408244893,-1030.19,8.493e-05,2]
[355627667,1741408244902,-1750.7,8.493e-05,2]
[355627668,1741408244911,-500.0,8.493e-05,2]
[355627669,1741408244920,-500.0,8.493e-05,2]
[355627670,1741408244930,-1877.08,8.493e-05,2]
[355627671,1741408244939,-500.0,8.493e-05,2]
[355627672,1741408244948,-500.0,8.493e-05,2]
[355627673,1741408244957,-500.0,8.493e-05,2]
[355627674,1741408244967,-500.0,8.493e-05,2]
[355627675,1741408244976,-537.81746097,8.493e-05,2]
[355627676,1741408244985,-917.83,8.493e-05,2]
[355627677,1741408244994,-500.0,8.493e-05,2]
[355627678,1741408245003,-2651.75,8.493e-05,2]
[355627679,1741408245013,-500.0,8.493e-05,2]
[355627680,1741408245022,-589.05063153,8.493e-05,2]
[355627681,1741408245032,-500.0,8.493e-05,2]
[355627682,1741408245041,-500.0,8.493e-05,2]
[355627683,1741408245051,-500.0,8.493e-05,2]
[355627684,1741408245061,-500.0,8.493e-05,2]
[355627685,1741408245070,-500.0,8.493e-05,2]
[355627686,1741408245079,-1817.42,8.493e-05,2]
[355627687,1741408245088,-1186.57,8.493e-05,2]
[355627688,1741408245098,-500.0,8.493e-05,2]
[355627689,1741408245107,-504.78670734,8.493e-05,2]
[355627690,1741408245116,-500.0,8.493e-05,2]
[355627691,1741408245125,-500.0,8.493e-05,2]
[355627692,1741408245135,-500.0,8.493e-05,2]
[355627693,1741408245144,-500.0,8.493e-05,2]
[355627694,1741408245153,-1106.92,8.493e-05,2]
[355627695,1741408245163,-500.0,8.493e-05,2]
[355627696,1741408245172,-500.0,8.493e-05,2]
[355627697,1741408245181,-500.0,8.493e-05,2]
[355627698,1741408245191,-500.0,8.493e-05,2]
[355627699,1741408245200,-500.0,8.493e-05,2]
[355627700,1741408245210,-1595.56,8.493e-05,2]
[355627701,1741408245219,-500.0,8.493e-05,2]
[355627702,1741408245229,-505.52076243,8.493e-05,2]
[355627703,1741408245239,-1750.72,8.493e-05,2]
[355627704,1741408245248,-500.0,8.493e-05,2]
[355627705,1741408245257,-500.0,8.493e-05,2]
[355627706,1741408245267,-1444.67,8.493e-05,2]
[355627707,1741408245277,-2299.41,8.493e-05,2]
[355627708,1741408245286,-500.0,8.493e-05,2]
[355627709,1741408245295,-500.0,8.493e-05,2]
[355627710,1741408245305,-500.0,8.493e-05,2]
[355627711,1741408245315,-1532.16,8.493e-05,2]
[355627712,1741408245324,-1800.14,8.493e-05,2]
[355627713,1741408245334,-1422.14,8.493e-05,2]
[355627714,1741408245343,-2723.25,8.493e-05,2]
[355627715,1741408245353,-500.0,8.493e-05,2]
[355627716,1741408245363,-500.0,8.493e-05,2]
[355627717,1741408245373,-2529.89,8.493e-05,2]
[355627718,1741408245383,-1760.64,8.493e-05,2]
[355627719,1741408245392,-500.0,8.493e-05,2]
[355627720,1741408245402,-2115.95,8.493e-05,2]
[355627721,1741408245412,-500.0,8.493e-05,2]
[355627722,1741408245423,-1679.91,8.493e-05,2]
[355627723,1741408245433,-500.0,8.493e-05,2]
[355627724,1741408245442,-500.0,8.493e-05,2]
[355627725,1741408245452,-1611.02,8.493e-05,2]
[355627726,1741408245461,-500.0,8.493e-05,2]
[355627727,1741408245472,-559.08,8.493e-05,2]
[355627728,1741408245482,-866.37,8.493e-05,2]
[355627729,1741408245492,-1115.81,8.493e-05,2]
[355627730,1741408245501,-599.59187003,8.493e-05,2]
[355627731,1741408245511,-500.0,8.493e-05,2]
[355627732,1741408245520,-2507.49,8.493e-05,2]
[355627733,1741408245529,-500.0,8.493e-05,2]
[355627734,1741408245539,-500.0,8.493e-05,2]
[355627735,1741408245548,-500.0,8.493e-05,2]
[355627736,1741408245558,-711.1,8.493e-05,2]
[355627737,1741408245567,-645.5,8.493e-05,2]
[355627738,1741408245578,-500.0,8.493e-05,2]
[355627739,1741408245588,-500.0,8.493e-05,2]
[355627740,1741408245597,-1297.1,8.493e-05,2]
[355627741,1741408245606,-947.85,8.493e-05,2]
[355627742,1741408245616,-500.0,8.493e-05,2]
[355627743,1741408245626,-500.0,8.493e-05,2]
[355627744,1741408245636,-2179.74,8.493e-05,2]
[355627745,1741408245647,-1262.15,8.493e-05,2]
[355627746,1741408245656,-500.0,8.493e-05,2]
[355627747,1741408245667,-1874.75,8.493e-05,2]
[355627748,1741408245677,-500.0,8.493e-05,2]
[355627749,1741408245692,-500.0,8.493e-05,2]
[355627750,1741408245702,-1323.46,8.493e-05,2]
[355627751,1741408245712,-500.0,8.493e-05,2]
[355627752,1741408245723,-1166.98,8.493e-05,2]
[355627753,1741408245732,-587.68238345,8.493e-05,2]
[355627754,1741408245743,-500.0,8.493e-05,2]
[355627755,1741408245753,-500.0,8.493e-05,2]
[355627756,1741408245763,-500.0,8.493e-05,2]
[355627757,1741408245773,-500.0,8.493e-05,2]
[355627758,1741408245783,-500.0,8.493e-05,2]
[355627759,1741408245793,-2599.64,8.493e-05,2]
[355627760,1741408245803,-500.0,8.493e-05,2]
[355627761,1741408245813,-1325.22,8.493e-05,2]
[355627762,1741408245823,-1160.11,8.493e-05,2]
[355627763,1741408245833,-500.0,8.493e-05,2]
[355627764,1741408245842,-1374.25,8.493e-05,2]
[355627765,1741408245854,-1337.46,8.493e-05,2]
[355627766,1741408245863,-500.0,8.493e-05,2]
[355627767,1741408245873,-1192.55,8.493e-05,2]
[355627768,1741408245883,-1140.39,8.493e-05,2]
[355627769,1741408245892,-1406.06,8.493e-05,2]
[355627770,1741408245902,-1054.92,8.493e-05,2]
[355627771,1741408245911,-500.0,8.493e-05,2]
[355627772,1741408245920,-500.0,8.493e-05,2]
[355627773,1741408245929,-500.0,8.493e-05,2]